[Event "Fagernes Chess GM-Swiss 2024"]
[Site "Fagernes"]
[Date "2024.03.27"]
[Round "4.8"]
[White "Puranik, Abhimanyu"]
[Black "Celik, Hasan Huseyin"]
[Result "1-0"]
[ECO "C18"]
[WhiteElo "2618"]
[BlackElo "2417"]
[Annotator "TA"]
[PlyCount "103"]
[EventDate "2024.03.25"]
[EventType "swiss"]
[EventCountry "NOR"]
[SourceTitle "playchess.com"]
[Source "ChessBase"]
[SourceQuality "1"]
[TimeControl "40/6000+30:2400+30"]

{[%evp 24,103,0,0,22,29,24,25,20,17,24,10,23,23,14,19,14,27,12,-20,0,-11,16,22,27,-8,-8,-8,0,-8,-8,-43,0,0,0,0,0,0,0,0,0,0,8,5,4,0,0,0,2,2,2,2,16,16,24,24,24,19,19,20,29,30,37,37,566,566,552,527,512,454,454,454,480,480,982,975,975,975,540,540,540,517]} 1. e4 {[%emt 0:00:10]} e6 {[%emt 0:00:27]} 2. d4 {[%emt 0:00:26]} d5 {[%emt 0:00:11]} 3. Nc3 {[%emt 0:00:22]} Bb4 {[%emt 0:00:18]} 4. e5 {[%emt 0:00:32]} c5 {[%emt 0:00:12]} 5. a3 {[%emt 0:00:22]} Bxc3+ {[%emt 0:00:14]} 6. bxc3 {[%emt 0:00:09]} Ne7 {[%emt 0:00:50]} 7. Qg4 {[%emt 0:01:40]} Qc7 {[%emt 0:00:14]} 8. Bd3 {[%emt 0:01:06]} cxd4 {[%emt 0:00:13]} 9. Ne2 {[%emt 0:00:36]} dxc3 {[%emt 0:00:15]} 10. Qxg7 {[%emt 0:00:41]} Rg8 {[%emt 0:00:02]} 11. Qxh7 {[%emt 0:00:04]} Qxe5 {[%emt 0:00:27]} 12. Bf4 {[%emt 0:00:36]} Qf6 {[%emt 0:00:13]} 13. h4 {[%emt 0:00:34]} Nd7 {[%emt 0:00:08][%cal Og8h8] [#] Strongly threatening ...Rh8!} 14. Bg5 {[%emt 0:00:21]} Qh8 {[%emt 0:00:03]} 15. Qxh8 {[%emt 0:00:06]} Rxh8 {[%emt 0:00:19] White has an edge.} 16. Nxc3 {[%emt 0:00:05]} a6 {[%emt 0:00:14] Prevents Nb5.} 17. O-O-O {[%emt 0:00:21]} f6 {[%emt 0:00:09]} 18. Be3 {[%emt 0:00:19]} b5 {[%emt 0:00:11]} 19. f4 {[%emt 0:00:52] Repels Ne5} Bb7 {[%emt 0:00:12]} 20. h5 {[%emt 0:00:53]} Kf7 {[%emt 0:00:10]} 21. f5 {[%emt 0:22:08]} exf5 {[%emt 0:18:54]} 22. Ne2 {[%emt 0:00:26]} d4 {[%emt 0:08:15]} 23. Nxd4 {[%emt 0:06:50]} Bxg2 {[%emt 0:00:24]} 24. Rhg1 {[%emt 0:10:47]} (24. Rh4 $5) 24... Bh3 {[%emt 0:13:18]} (24... Be4 25. h6 Rag8 26. Rxg8 Rxg8 27. Bxe4 fxe4 28. Nxb5 axb5 29. Rxd7 $14) 25. h6 {[%emt 0:07:14]} Rag8 {[%emt 0:05:15] Inhibits Rg7+.} 26. a4 {[%emt 0:10:33]} Ne5 {[%emt 0:13:12] With the idea ...Bg4.} (26... Bg4 {with more complications.} 27. Rdf1 Ne5 28. Bxf5 Bxf5 29. Rxg8 Rxg8 30. Nxf5 Nxf5 31. Rxf5 bxa4 32. Rf4 a3) 27. axb5 {[%emt 0:09:33] And now Rxg8 would win.} (27. Rxg8 {is more complex.} Rxg8 28. axb5 Bg4 29. Rf1) 27... Nxd3+ {[%emt 0:01:38]} (27... Bg4 {seems wilder.} 28. Rd2 axb5 29. Nxb5 Nd5) 28. Rxd3 {[%emt 0:01:03]} axb5 {[%emt 0:00:30]} 29. Rxg8 {[%emt 0:01:45]} Nxg8 {[%emt 0:00:43]} 30. Bf4 {[%emt 0:12:54]} Bg4 {[%emt 0:01:04]} 31. Nxb5 {[%emt 0:05:59] Threatens to win with Rd7+.} Nxh6 {[%emt 0:00:21]} 32. c4 {[%emt 0:00:03][%cal Bc2c4,Bc4c5,Bc5c6,Bc6c7][%mdl 32]} Be2 {[%emt 0:07:07]} 33. Nd6+ {[%emt 0:02:48]} Kg6 {[%emt 0:01:14]} 34. Rg3+ {[%emt 0:01:09]} Bg4 {[%emt 0:05:50]} 35. c5 {[%emt 0:01:01]} Nf7 {[%emt 0:00:12]} 36. Nxf7 {[%emt 0:00:57]} Kxf7 $11 {[%emt 0:01:30][%mdl 4096] Endgame. KRB-KRB} 37. c6 {[%emt 0:00:03]} Rc8 {[%emt 0:03:05]} 38. c7 {[%emt 0:00:09][%mdl 1024] White has compensation.} Ke7 {[%emt 0:00:13]} 39. Rd3 {[%emt 0:00:24]} Bh5 {[%emt 0:00:56]} 40. Kb2 {[%emt 0:00:25]} Be8 {[%emt 0:00:17]} 41. Kc3 {[%emt 0:40:39]} Bc6 {[%emt 0:40:15]} 42. Kb4 {[%emt 0:00:21]} Be4 {[%emt 0:00:47]} 43. Rd2 {[%emt 0:02:41]} Ra8 $2 {[%emt 0:06:02][%mdl 8192] [#] Loses the game.} (43... Rg8 $14) 44. Kc5 $1 $18 {[%emt 0:01:00] White is clearly winning.} Rc8 {[%emt 0:10:16]} 45. Kb6 {[%emt 0:00:16]} Bf3 {[%emt 0:00:34]} 46. Rd3 {[%emt 0:01:55]} Be4 {[%emt 0:00:23]} 47. Rd4 {[%emt 0:00:47]} Bf3 {[%emt 0:00:18]} 48. Bd2 {[%emt 0:00:00] Bc3 is the strong threat.} Ba8 {[%emt 0:00:00]} (48... f4 $142 49. Bb4+ (49. Bxf4 Re8 $16) (49. Rxf4 Bd5 $16) 49... Ke8 50. Rxf4 Kd7 51. Rxf6 (51. Rxf3 Rxc7 52. Rxf6 Rc2 $18) 51... Rxc7) 49. Bc3 {[%emt 0:00:00][%cal Od4d8] aiming for Rd8!} Ke8 {[%emt 0:00:00]} 50. Rd2 {[%emt 0:00:00]} f4 {[%emt 0:00:00]} 51. Bxf6 {[%emt 0:00:00] White threatens Rd8+ and mate.} Kf7 {[%emt 0:00:00]} 52. Bh4 {[%emt 0:00:00] Weighted Error Value: White=0.06 (flawless) /Black=0.25 (precise) .  Loses game:     	---       	Black=1      Mistake:       	---       	Black=1      Inaccurate:     	White=3     	Black=2      OK:         	White=18    	Black=14     Best:        	White=3     	Black=3      Strong:       	White=1     	---} 1-0

[Event "Fagernes Chess GM-Swiss 2024"]
[Site "Fagernes"]
[Date "2024.03.27"]
[Round "4.9"]
[White "Sasikiran, Krishnan"]
[Black "Narva, Mai"]
[Result "1-0"]
[ECO "E20"]
[WhiteElo "2578"]
[BlackElo "2399"]
[Annotator "TA"]
[PlyCount "95"]
[EventDate "2024.03.25"]
[EventType "swiss"]
[EventCountry "NOR"]
[SourceTitle "playchess.com"]
[Source "ChessBase"]
[SourceQuality "1"]
[TimeControl "40/6000+30:2400+30"]

{[%evp 37,95,-26,0,-65,-65,-157,-174,-161,-161,-166,-170,-164,0,0,19,20,52,67,202,0,185,191,210,191,212,176,354,357,449,441,433,147,299,275,295,237,222,263,450,448,787,789,1498,1500,974,1177,1499,1295,1714,1674,29981,29982,29989,29990,29991,29992,29993,29994,29994,29995]} 1. d4 {[%emt 0:00:03]} Nf6 {[%emt 0:00:43]} 2. c4 {[%emt 0:00:10]} e6 {[%emt 0:00:16]} 3. Nc3 {[%emt 0:00:14]} Bb4 {[%emt 0:00:34]} 4. f3 {[%emt 0:01:40]} c5 {[%emt 0:00:32]} 5. d5 {[%emt 0:01:01]} b5 {[%emt 0:00:31]} 6. e4 {[%emt 0:01:02] E20: Nimzo-Indian: 4 g3 and 4 f3.} O-O {[%emt 0:00:26]} 7. Nh3 {[%emt 0:04:14]} bxc4 {[%emt 0:00:39]} 8. Bxc4 {[%emt 0:01:13]} exd5 {[%emt 0:00:43]} 9. Bxd5 {[%emt 0:00:58]} Nxd5 {[%emt 0:00:32]} 10. Qxd5 {[%emt 0:00:48]} Ba6 {[%emt 0:01:10]} 11. Bf4 {[%emt 0:12:18]} Nc6 {[%emt 0:01:34]} 12. Kf2 {[%emt 0:03:10]} Ba5 {[%emt 0:04:09]} 13. Rhd1 {[%emt 0:17:04]} Nb4 {[%emt 0:07:24]} 14. Qd6 {[%emt 0:05:06]} Bb6 {[%emt 0:04:59]} 15. Kg3 {[%emt 0:20:09]} Re8 $146 {[%emt 0:35:31]} ({Predecessor:} 15... Nc2 16. Rac1 Nd4 17. Kf2 Re8 18. Na4 Ne2 19. Rc2 Nxf4 20. Nxf4 Bc7 21. Qxa6 Qh4+ {0-1 Bobkov,V (2341)-Drygalov,S (2500) Cheliabinsk Panchenko Memorial op-A 2021 (2)}) 16. Qxd7 {[%emt 0:05:12]} Qf6 {[%emt 0:02:11]} 17. Rd6 {[%emt 0:13:24]} Re6 {[%emt 0:04:04]} 18. Rad1 {[%emt 0:06:09]} h6 {[%emt 0:10:06]} 19. a3 {[%emt 0:08:22]} Nd3 {[%emt 0:14:15]} 20. R1xd3 {[%emt 0:04:15]} (20. R6xd3 $11 Qg6+ (20... Rd8 $2 21. Qxd8+ Bxd8 22. Rxd8+ $18) 21. Kh4 (21. Kf2 Bxd3 22. Bc7 c4+ 23. Bxb6 Rxb6 $19) 21... Bxd3 (21... Rd8 $2 22. Qxd8+ Bxd8+ 23. Rxd8+ $18) 22. Qxd3 (22. Rxd3 $2 Qxg2 23. Qd5 Bd8+ 24. Qxd8+ Rxd8 $19) 22... Qf6+ 23. Kg3 Qg6+ 24. Kh4 Qxg2 25. Rd2) 20... Bxd3 $15 {[%emt 0:00:40]} (20... Qg6+ {is more complex.} 21. Kf2 Bxd3 22. Nd5 Rd8) 21. Rxb6 {[%emt 0:02:55]} (21. Rxd3 $2 Rd8 22. Qb5 Qg6+ 23. Kf2 Rxd3 $19) (21. Rxe6 fxe6 22. Bc7 (22. Qxd3 $2 Qg6+ $19) 22... Bf1 $19) (21. Nd5 $1 $15 Qg6+ (21... Qxb2 $2 22. Rxe6 Qb5 23. Qxb5 $18) 22. Kf2) 21... Rxb6 $17 {[%emt 0:05:04]} 22. Qxd3 {[%emt 0:00:13]} Rxb2 {[%emt 0:03:32]} 23. e5 {[%emt 0:01:05]} Qe6 {[%emt 0:02:41]} 24. Qe4 {[%emt 0:00:45]} Rd8 $2 {[%emt 0:00:21]} (24... Re8 $1 $19 {Threatens to win with ...g5.} 25. Nd5 Qg6+ 26. Qxg6 fxg6) 25. Bc1 $1 $11 {[%emt 0:00:38]} Rbb8 {[%emt 0:08:59]} (25... Rb6 $5 26. Nf4 $8 Qb3 $14) 26. Nf4 {[%emt 0:00:28]} Qb3 {[%emt 0:00:29]} 27. Nfd5 {[%emt 0:00:33]} Re8 {[%emt 0:01:14] [#]} ({Black should play} 27... Kh8 $14) 28. h3 $2 {[%emt 0:00:43]} (28. Bxh6 $1 $18 {Intending Qg4 and mate.} Re6 (28... gxh6 $2 29. Nf6+ Kf8 30. Qh7 $18) 29. Bg5) 28... Rb6 $2 {[%emt 0:00:34]} (28... Rbd8 $11 {and Black has nothing to worry.}) 29. Kh2 $18 {[%emt 0:00:27]} (29. Nxb6 $2 Qxc3 30. e6 (30. Qa4 $2 Qxe5+ 31. Bf4 Qe1+ 32. Kh2 axb6 $19) 30... axb6 31. exf7+ Kxf7 32. Qd5+ Kf6 33. Qd6+ Re6 34. Qd8+ Kg6 $19) 29... Rbe6 {[%emt 0:00:32] [#]} 30. f4 $1 {[%emt 0:00:28]} a5 {[%emt 0:00:31]} 31. a4 {[%emt 0:00:29]} f6 $2 {[%emt 0:00:24]} (31... Kh8 32. Be3 f6 33. Bxc5 Qb8) 32. Be3 $18 {[%emt 0:00:34]} c4 {[%emt 0:00:38]} 33. Bc5 {[%emt 0:00:34]} Kh8 {[%emt 0:00:29]} 34. Bd4 $2 {[%emt 0:00:12]} (34. Qf5 $18 {[%cal Re5f6]} fxe5 35. Qf7 (35. Nc7 Qxc3 36. Nxe6 exf4 $11) 35... exf4 36. Bf8 (36. Be7 R8xe7 37. Qf8+ Kh7 $17) 36... Rxf8 37. Qxf8+ Kh7 38. Qf5+ (38. Nxf4 Rf6 $11) (38. Qxf4 Qc2 $14) 38... Rg6 39. Nxf4 (39. Qxf4 Qc2 $11) 39... Qxc3 40. Nxg6 (40. Qxg6+ Kh8 $18)) 34... fxe5 $2 {[%emt 0:00:30]} (34... Qb8 $16) 35. fxe5 $18 {[%emt 0:00:14]} Qb7 {[%emt 0:00:23]} 36. Qe3 {[%emt 0:00:48]} Qf7 {[%emt 0:00:37]} 37. Nf4 {[%emt 0:00:35]} R6e7 $2 {[%emt 0:00:31]} (37... Rd6 {was necessary.} 38. Nb5 (38. exd6 Rxe3 39. Bxe3 Kg8 $16) 38... Rc6) 38. Qe4 $18 {[%emt 0:00:28]} ({Don't play} 38. Ncd5 Qf5 39. Nxe7 Rxe7) 38... Kg8 {[%emt 0:00:19]} (38... Re6 $142 39. Nxe6 Qxe6) 39. Ncd5 $18 {[%emt 0:00:10]} Re6 {[%emt 0:00:40]} 40. Nxe6 {[%emt 0:00:23]} Rxe6 {[%emt 0:00:05]} 41. Nf4 {[%emt 0:40:32]} Re8 {[%emt 0:40:40]} 42. e6 {[%emt 0:00:00]} Qc7 {[%emt 0:00:00]} 43. Be5 {[%emt 0:00:00]} Qc5 {[%emt 0:00:00]} 44. Bxg7 {[%emt 0:00:00]} Qg5 {[%emt 0:00:00]} 45. Bc3 {[%emt 0:00:00]} h5 {[%emt 0:00:00]} 46. Nd5 {[%emt 0:00:00]} h4 {[%emt 0:00:00]} 47. Nf6+ {[%emt 0:00:00]} Kf8 {[%emt 0:00:00]} 48. Nh7+ {[%emt 0:00:00]} 1-0

[Event "Fagernes Chess GM-Swiss 2024"]
[Site "Fagernes"]
[Date "2024.03.27"]
[Round "4.10"]
[White "Raja Rithvik R"]
[Black "Audi Ameya"]
[Result "1-0"]
[ECO "A34"]
[WhiteElo "2532"]
[BlackElo "2378"]
[Annotator "TA"]
[PlyCount "63"]
[EventDate "2024.03.25"]
[EventType "swiss"]
[EventCountry "NOR"]
[SourceTitle "playchess.com"]
[Source "ChessBase"]
[SourceQuality "1"]
[TimeControl "40/6000+30:2400+30"]

{[%evp 11,63,18,23,12,22,25,12,-4,6,-9,49,38,41,17,26,-56,29,31,36,23,45,38,87,91,87,90,178,189,360,360,327,226,382,177,247,287,286,284,533,527,499,304,527,521,587,596,621,628,1039,1008,2081,1959,29988,29987]} 1. Nf3 {[%emt 0:02:48]} Nf6 {[%emt 0:00:06]} 2. c4 {[%emt 0:00:08]} c5 {[%emt 0:01:32]} 3. Nc3 {[%emt 0:00:08]} d5 {[%emt 0:00:22]} 4. cxd5 {[%emt 0:00:26]} Nxd5 {[%emt 0:00:04]} 5. e3 {[%emt 0:00:36]} Nxc3 {[%emt 0:02:16]} 6. bxc3 {[%emt 0:01:13]} g6 {[%emt 0:00:41]} 7. Ba3 {[%emt 0:05:04]} Qc7 {[%emt 0:20:55]} 8. h4 {[%emt 0:22:02]} h6 {[%emt 0:06:14]} 9. d4 {[%emt 0:03:42] The position is equal.} Bg7 {[%emt 0:10:54] ...cxd4 is the strong threat.} 10. Qb3 {[%emt 0:05:47]} cxd4 {[%emt 0:07:51]} (10... b6 $11) 11. cxd4 $14 {[%emt 0:01:01]} Be6 {[%emt 0:00:58]} 12. Bb5+ {[%emt 0:04:46]} Nc6 {[%emt 0:01:24]} 13. Qd3 {[%emt 0:07:15]} (13. Qb2 $11) 13... Bd5 {[%emt 0:09:19]} (13... a6 $1 $15 14. Bxc6+ Qxc6) 14. O-O $11 {[%emt 0:01:49]} a6 {[%emt 0:02:46]} 15. Bc4 {[%emt 0:08:18]} Nb4 {[%emt 0:07:44]} 16. Bxb4 {[%emt 0:00:25]} Bxc4 {[%emt 0:00:42]} (16... Qxc4 $14 17. Qxc4 Bxc4) 17. Rfc1 $16 {[%emt 0:01:42] White now steadily converts the win.} Rc8 {[%emt 0:00:03]} 18. Qa3 $36 {[%emt 0:05:44][%mdl 2048] Black is under strong pressure. White is more active.} Qd7 {[%emt 0:08:31]} (18... Qd8 $16 {was called for.}) 19. Nd2 $18 {[%emt 0:07:23]} Bd5 {[%emt 0:00:28]} (19... b5 20. Nxc4 (20. Qxa6 Rc6 $18) 20... bxc4 21. Qxa6 Qc6 22. Qxc6+ Rxc6) 20. Rxc8+ {[%emt 0:01:44]} Qxc8 {[%emt 0:00:04]} 21. Bxe7 {[%emt 0:00:03] Black must now prevent Rc1.} Qg4 $2 {[%emt 0:07:26]} (21... f5 22. Rc1 Qd7) 22. f3 {[%emt 0:01:08]} (22. e4 $142 Bc6 23. Bc5) 22... Qd7 {[%emt 0:02:23] [#]} (22... Qe6 $142 23. Bc5 b6) 23. Rc1 $1 {[%emt 0:04:14]} f5 {[%emt 0:02:35] Black is weak on the dark squares} (23... Qxe7 $2 {is the wrong capture.} 24. Rc8+ Kd7 25. Rc7+ Kxc7 26. Qxe7+ Kc8 27. Qc5+ Bc6 28. d5 $18) 24. Bd6 {[%emt 0:00:40] aiming for Rc7.} Bf8 $2 {[%emt 0:00:25]} (24... Qe6 25. Rc7 Bf6) 25. Bxf8 {[%emt 0:00:43]} Rxf8 {[%emt 0:00:02]} 26. Rc5 {[%emt 0:04:05]} Rf6 $2 {[%emt 0:00:48]} (26... b6) 27. e4 {[%emt 0:02:42]} fxe4 {[%emt 0:00:25]} 28. fxe4 {[%emt 0:00:04][%cal Bf3e4,Be4e5][%mdl 32]} Bxa2 {[%emt 0:01:05]} 29. d5 {[%emt 0:00:41][%cal Oa3c3] [#] And now Qc3! would win.} Qd6 {[%emt 0:02:21]} 30. Qc3 {[%emt 0:02:28]} Qf4 {[%emt 0:00:48]} 31. Nf3 {[%emt 0:01:45]} Kd7 {[%emt 0:03:41]} 32. e5 {[%emt 0:02:18] Weighted Error Value: White=0.40/Black=0.83.  Mistake:       	White=2     	Black=9      Inaccurate:     	White=2     	Black=1      OK:         	White=8     	Black=4      Best:        	White=4     	Black=2} 1-0

[Event "Fagernes Chess GM-Swiss 2024"]
[Site "Fagernes"]
[Date "2024.03.27"]
[Round "4.11"]
[White "Mihajlov, Sebastian"]
[Black "Pranav Anand"]
[Result "0-1"]
[ECO "B86"]
[WhiteElo "2373"]
[BlackElo "2519"]
[Annotator "TA"]
[PlyCount "78"]
[EventDate "2024.03.25"]
[EventType "swiss"]
[EventCountry "NOR"]
[SourceTitle "playchess.com"]
[Source "ChessBase"]
[SourceQuality "1"]
[TimeControl "40/6000+30:2400+30"]

{[%evp 14,78,0,-12,-5,-2,-10,-22,-18,-39,55,67,70,23,25,24,35,27,28,18,64,0,0,0,25,-75,-42,-59,-63,-65,-16,-9,0,-51,-70,-94,-92,-141,-131,-121,-122,-125,-124,-181,-187,-216,-190,-208,-204,-325,-254,-283,-283,-279,-227,-212,-194,-404,-380,-439,-437,-391,-173,-716,-762,-868,-866]} 1. e4 {[%emt 0:00:17]} c5 {[%emt 0:00:09]} 2. Nf3 {[%emt 0:00:09]} d6 {[%emt 0:00:28]} 3. d4 {[%emt 0:00:07]} cxd4 {[%emt 0:00:05]} 4. Nxd4 {[%emt 0:00:04]} Nf6 {[%emt 0:00:06]} 5. Nc3 {[%emt 0:00:04]} a6 {[%emt 0:00:03]} 6. Bc4 {[%emt 0:01:42]} e6 {[%emt 0:00:07]} 7. Bb3 {[%emt 0:00:02]} Nbd7 {[%emt 0:00:23]} 8. f4 {[%emt 0:00:59][%cal Bf2f4,Bf4f5][%mdl 32]} Qc7 {[%emt 0:00:06]} 9. f5 {[%emt 0:06:15]} Nc5 {[%emt 0:01:12]} 10. Qf3 {[%emt 0:19:28]} Be7 {[%emt 0:05:38] The position is equal.} 11. g4 {[%emt 0:11:04]} h5 {[%emt 0:15:34]} ({Better is} 11... d5 $15 12. exd5 Nxb3 13. axb3 Qe5+ 14. Nde2 Nxd5) 12. g5 $14 {[%emt 0:03:45]} Ng4 {[%emt 0:02:26][%cal Od6d5]} 13. Bd2 {[%emt 0:21:38]} ({White should try} 13. Bf4 $14) 13... Nxb3 $11 {[%emt 0:07:22]} 14. axb3 {[%emt 0:00:53]} Qc5 {[%emt 0:02:40]} 15. Nce2 {[%emt 0:02:53]} Bd7 {[%emt 0:14:09]} 16. b4 {[%emt 0:11:31]} Qb6 {[%emt 0:07:30]} (16... Qc8 $11) 17. h3 {[%emt 0:01:39]} Ne5 {[%emt 0:00:32]} 18. Qb3 {[%emt 0:00:17]} Rc8 {[%emt 0:07:36]} 19. g6 {[%emt 0:06:21]} (19. O-O-O $11 {keeps the balance.}) 19... fxg6 {[%emt 0:08:45]} (19... Bh4+ {seems wilder.} 20. Kd1 fxg6 21. Nxe6 Qc6) 20. O-O-O {[%emt 0:07:33]} exf5 {[%emt 0:02:11]} 21. exf5 {[%emt 0:01:07]} gxf5 {[%emt 0:02:59]} (21... Rc4 $15 22. Bc3 gxf5 (22... Bxf5 23. Nxf5 gxf5 24. Rhe1 $14)) 22. Rhg1 {[%emt 0:00:17]} g6 {[%emt 0:01:28][%cal Oa6a5]} 23. Be3 {[%emt 0:00:18]} (23. Qe3 $11) 23... Qc7 {[%emt 0:01:42]} 24. Nf4 {[%emt 0:00:21] Black continues to play with concentration.} Qc4 {[%emt 0:01:02]} 25. Nxg6 {[%emt 0:00:11]} (25. Qxc4 $142 Rxc4 (25... Nxc4 26. Nxg6 Nxe3 27. Rde1 $11) 26. b3) 25... Qxb3 $17 {[%emt 0:04:41]} 26. Nxb3 {[%emt 0:00:05]} Nxg6 {[%emt 0:00:17]} 27. Rxg6 {[%emt 0:00:02]} Kf7 $36 {[%emt 0:03:24][%mdl 2048] Black has strong initiative.} 28. Rg2 {[%emt 0:00:13]} (28. Rg3 $17) 28... Rhg8 $1 $19 {[%emt 0:01:33]} 29. Rxg8 {[%emt 0:01:07]} Rxg8 {[%emt 0:00:05]} (29... Kxg8 30. Nc5 Bc6 (30... dxc5 31. Rxd7 Bf8 32. bxc5 $11) 31. Ne6) 30. Bf4 {[%emt 0:00:04] [#]} Bc6 $1 {[%emt 0:02:39]} 31. Bxd6 {[%emt 0:02:21]} (31. Nd4 $142 Be4 32. b5) 31... Bf3 {[%emt 0:02:32]} 32. Rf1 {[%emt 0:00:41] [#] Hoping for Bxe7.} Bg2 $1 {[%emt 0:00:07] A strong pair of Bishops.} (32... Bxd6 33. Rxf3 f4 (33... Bxb4 34. Rxf5+ Kg6 35. Rf3 $11) 34. Kd1 $17) 33. Rd1 {[%emt 0:02:24]} Bxd6 {[%emt 0:01:02]} ({Don't take} 33... Bxh3 34. Bxe7 Kxe7 35. Nc5 $19) 34. Rxd6 {[%emt 0:00:07]} Bxh3 {[%emt 0:00:03] KRB-KRN} 35. Nc5 $2 {[%emt 0:07:03]} (35. Kd2) 35... Bg4 {[%emt 0:01:37]} 36. Kd2 {[%emt 0:00:30]} Re8 {[%emt 0:03:22]} 37. Nxb7 {[%emt 0:01:22]} Kg7 {[%emt 0:00:25]} (37... f4 $142 38. Nc5 f3) 38. Rd4 $2 {[%emt 0:01:49]} (38. Rxa6 Re2+ 39. Kc3) 38... h4 {[%emt 0:01:00]} 39. Nd6 {[%emt 0:00:04]} Rh8 {[%emt 0:00:02] Weighted Error Value: White=0.55/Black=0.18 (very precise) .  Mistake:       	White=8     	Black=4      Inaccurate:     	White=1     	Black=1      OK:         	White=7     	Black=13     Best:        	White=1     	Black=4      Strong:       	---       	Black=2} 0-1

[Event "Fagernes Chess GM-Swiss 2024"]
[Site "Fagernes"]
[Date "2024.03.27"]
[Round "4.12"]
[White "Blomqvist, Erik"]
[Black "Carlsson, Ludvig"]
[Result "1-0"]
[ECO "C80"]
[WhiteElo "2511"]
[BlackElo "2350"]
[Annotator "TA"]
[PlyCount "67"]
[EventDate "2024.03.25"]
[EventType "swiss"]
[EventCountry "NOR"]
[SourceTitle "playchess.com"]
[Source "ChessBase"]
[SourceQuality "1"]
[TimeControl "40/6000+30:2400+30"]

{[%evp 24,67,27,31,42,0,0,0,3,0,0,-14,0,-13,-17,-18,-14,-31,-35,-46,0,0,10,10,529,546,562,537,533,582,582,572,698,578,701,691,908,908,886,911,911,598,911,900,870,825]} 1. e4 {[%emt 0:00:18]} e5 {[%emt 0:00:58]} 2. Nf3 {[%emt 0:00:13]} Nc6 {[%emt 0:00:08]} 3. Bb5 {[%emt 0:00:44][%cal Bf1b5,Bb5a4,Ba4b3][%mdl 32]} a6 {[%emt 0:00:10]} 4. Ba4 {[%emt 0:00:07]} Nf6 {[%emt 0:00:06]} 5. O-O {[%emt 0:00:19]} Nxe4 {[%emt 0:00:07]} 6. d4 {[%emt 0:01:04]} b5 {[%emt 0:00:13]} 7. Bb3 {[%emt 0:00:10]} d5 {[%emt 0:00:06]} 8. dxe5 {[%emt 0:03:11]} Be6 {[%emt 0:00:09]} 9. Nbd2 {[%emt 0:00:54]} Nc5 {[%emt 0:00:55]} 10. c3 {[%emt 0:00:20]} d4 {[%emt 0:00:08]} 11. Bxe6 {[%emt 0:02:39]} Nxe6 {[%emt 0:00:09]} 12. cxd4 {[%emt 0:00:12]} Ncxd4 {[%emt 0:00:08]} 13. a4 {[%emt 0:00:14]} Bb4 {[%emt 0:00:08]} 14. Ne4 {[%emt 0:00:45] Threatening Be3.} O-O {[%emt 0:06:22]} 15. Be3 {[%emt 0:02:57]} Nf5 {[%emt 0:07:56] The position is equal.} 16. Qb3 {[%emt 0:02:07]} Nxe3 {[%emt 0:03:52]} 17. Qxe3 {[%emt 0:01:39]} Qe7 {[%emt 0:04:06]} 18. h4 {[%emt 0:04:16]} bxa4 {[%emt 0:05:40]} 19. Rfc1 {[%emt 0:11:28]} a5 {[%emt 0:03:49]} 20. Rc4 {[%emt 0:03:43][%cal Oe4g5]} Rfd8 {[%emt 0:02:13]} 21. h5 {[%emt 0:07:19][%cal Oh5h6]} Qd7 {[%emt 0:10:45]} (21... h6 $15 {feels stronger.}) 22. h6 $11 {[%emt 0:09:50] [#] hxg7 is the strong threat.} Qd3 {[%emt 0:00:07]} 23. Qc1 {[%emt 0:02:45] next hxg7 is good for White.} Nd4 $2 {[%emt 0:05:54][%mdl 8192] This move loses the game for Black.} (23... Be7 $11 {and Black stays safe.}) 24. Rxd4 {[%emt 0:31:51] White is clearly winning.} Rxd4 {[%emt 0:00:18]} 25. Qg5 $1 {[%emt 0:00:27]} Bf8 {[%emt 0:01:50]} 26. Nf6+ {[%emt 0:03:54] A dynamic duo of knights.} Kh8 {[%emt 0:03:59]} 27. Nxd4 {[%emt 0:00:08] Strongly threatening hxg7+.} Qxd4 {[%emt 0:00:38]} 28. hxg7+ {[%emt 0:01:45]} Bxg7 {[%emt 0:00:10]} 29. Ra3 {[%emt 0:06:27] And now Rg3 would win.} Qxb2 {[%emt 0:01:52] [#]} 30. Qf5 $1 {[%emt 0:01:25][%csl Gf6][%cal Rf5h7]} Bxf6 {[%emt 0:01:31]} 31. Qxf6+ {[%emt 0:00:37]} Kg8 {[%emt 0:00:05]} 32. Rg3+ {[%emt 0:01:16]} ({Inferior is} 32. Rxa4 Qb1+ 33. Kh2 Qg6 $11) 32... Kf8 {[%emt 0:00:06]} 33. Rg7 {[%emt 0:03:10]} Qb3 {[%emt 0:00:26]} 34. Qg5 {[%emt 0:00:50] Weighted Error Value: White=0.06 (flawless) /Black=0.54.  Loses game:     	---       	Black=1      Mistake:       	---       	Black=1      Inaccurate:     	White=1     	Black=1      OK:         	White=5     	Black=6      Best:        	White=1     	---        Strong:       	White=1     	---} 1-0